bitfinex/quotes_SOLUSD_20241103
["timestamp","ask_amount","ask_price","bid_price","bid_amount"]
[1730598057391,11.27395146,164.47,164.42,11.27395146]
[1730598057554,11.27395146,164.47,164.41,21.3082]
[1730598057555,11.27395146,164.48,164.43,11.27395146]
[1730598058381,11.27395146,164.47,164.42,11.27395146]
[1730598058555,11.27395146,164.47,164.43,43.776884]
[1730598058757,11.27395146,164.47,164.43,20.0]
[1730598061094,11.27395146,164.46,164.43,23.776884]
[1730598061659,11.27395146,164.46,164.44,20.0]
[1730598067085,11.27395146,164.45,164.36,11.27395146]
[1730598067379,11.27395146,164.4,164.34,33.36915146]
[1730598067875,11.27395146,164.39,164.34,22.0952]
[1730598068287,11.27395146,164.4,164.34,33.36915146]
[1730598068985,11.27395146,164.4,164.35,20.0]
[1730598070656,11.27395146,164.4,164.37,20.0]
[1730598070878,11.27395146,164.42,164.37,20.0]
[1730598071786,11.27395146,164.42,164.37,31.27395146]
[1730598072006,11.27395146,164.43,164.39,20.0]
[1730598074578,6.0801,164.47,164.39,20.0]
[1730598074579,11.27395146,164.42,164.39,20.0]
[1730598077192,11.27395146,164.46,164.41,31.27395146]
[1730598077700,11.27395146,164.47,164.43,20.0]
[1730598077869,11.27395146,164.49,164.43,31.27395146]
[1730598078073,11.27395146,164.49,164.44,11.27395146]
[1730598078287,11.27395146,164.5,164.45,11.27395146]
[1730598078489,11.27395146,164.51,164.46,11.27395146]
[1730598078683,11.27395146,164.51,164.47,20.0]
[1730598079582,11.27395146,164.5,164.46,20.0]
[1730598086280,11.27395146,164.52,164.46,31.27395146]
[1730598086487,11.27395146,164.53,164.48,31.27395146]
[1730598087303,11.27395146,164.51,164.48,20.0]
[1730598087981,11.27395146,164.51,164.47,20.0]
[1730598088299,11.27395146,164.5,164.46,20.0]
[1730598088883,11.27395146,164.49,164.45,43.776884]
[1730598090033,6.0774,164.55,164.44,23.776884]
[1730598090034,11.27395146,164.48,164.44,23.776884]
[1730598090196,11.27395146,164.45,164.41,15.9937]
[1730598090410,11.27395146,164.43,164.4,6.0427]
[1730598090999,11.27395146,164.44,164.4,6.0427]
[1730598091579,11.27395146,164.44,164.41,43.776884]
[1730598091805,11.27395146,164.43,164.39,20.0]
[1730598092002,11.27395146,164.43,164.4,23.776884]
[1730598092302,11.27395146,164.43,164.41,20.0]
[1730598094514,11.27395146,164.44,164.41,20.0]
[1730598095583,11.27395146,164.45,164.41,20.0]
[1730598097004,11.27395146,164.43,164.41,20.0]
[1730598101493,11.27395146,164.43,164.37,27.26765146]
[1730598101494,11.27395146,164.42,164.37,15.9937]
[1730598101707,11.27395146,164.4,164.38,43.776884]
[1730598102215,11.27395146,164.4,164.38,23.776884]
[1730598104622,11.27395146,164.4,164.37,20.0]
[1730598107810,11.27395146,164.41,164.37,20.0]
[1730598111000,11.27395146,164.4,164.37,20.0]
[1730598111210,11.27395146,164.39,164.35,20.0]
[1730598111521,11.27395146,164.38,164.37,20.0]
[1730598111910,11.27395146,164.38,164.36,20.0]
[1730598112716,11.27395146,164.37,164.34,20.0]
[1730598112922,11.27395146,164.36,164.34,20.0]
[1730598113225,11.27395146,164.41,164.36,20.0]
[1730598113402,11.27395146,164.41,164.36,31.27395146]
[1730598115614,11.27395146,164.4,164.36,43.776884]
[1730598118819,11.27395146,164.41,164.36,55.05083546]
[1730598120734,11.27395146,164.43,164.37,11.27395146]
[1730598120910,11.27395146,164.45,164.4,31.27395146]
[1730598121237,15.8252,164.49,164.4,31.27395146]
[1730598121238,11.27395146,164.46,164.4,31.27395146]
[1730598121528,3.5873268,164.45,164.4,31.27395146]
[1730598121706,11.27395146,164.46,164.4,31.27395146]
[1730598121907,3.58749855,164.45,164.4,31.27395146]
[1730598122108,11.27395146,164.45,164.4,31.27395146]
[1730598124511,11.27395146,164.46,164.4,31.27395146]
[1730598124730,11.27395146,164.46,164.41,23.776884]
[1730598126028,11.27395146,164.45,164.41,23.776884]
[1730598129135,11.27395146,164.46,164.41,35.05083546]
[1730598129345,3.59072695,164.45,164.42,20.0]
[1730598129540,11.27395146,164.46,164.42,20.0]
[1730598130222,3.59127341,164.45,164.42,20.0]
[1730598130528,11.27395146,164.46,164.42,20.0]
[1730598130723,3.59125894,164.45,164.42,20.0]
[1730598130924,11.27395146,164.46,164.42,20.0]
[1730598131144,3.59092513,164.45,164.42,20.0]
[1730598131430,3.59108225,164.45,164.42,20.0]
[1730598131743,11.27395146,164.47,164.42,31.27395146]
[1730598131920,3.59146002,164.46,164.42,31.27395146]
[1730598132118,11.27395146,164.47,164.42,31.27395146]
[1730598132319,3.59160794,164.46,164.42,31.27395146]
[1730598132533,11.27395146,164.47,164.42,31.27395146]
[1730598132735,3.59202169,164.46,164.42,31.27395146]
[1730598132938,11.27395146,164.47,164.42,31.27395146]
[1730598133239,3.59203163,164.46,164.42,31.27395146]
[1730598133433,11.27395146,164.47,164.42,31.27395146]
[1730598133743,3.5931445,164.46,164.42,31.27395146]
[1730598134045,11.27395146,164.47,164.42,31.27395146]
[1730598134223,3.59314314,164.46,164.42,31.27395146]
[1730598134625,3.59426213,164.45,164.42,31.27395146]
[1730598134831,11.27395146,164.47,164.42,31.27395146]
[1730598135028,3.59423733,164.46,164.43,23.776884]
[1730598135319,11.27395146,164.49,164.44,11.27395146]
[1730598135523,3.5956878,164.48,164.44,11.27395146]
[1730598135745,3.5956878,164.47,164.44,11.27395146]
[1730598136040,3.5956878,164.46,164.44,11.27395146]
[1730598136243,11.27395146,164.48,164.43,35.05083546]
[1730598136541,3.59637872,164.47,164.43,35.05083546]
[1730598136739,3.59637872,164.46,164.43,35.05083546]
[1730598136921,11.27395146,164.48,164.44,20.0]
[1730598137122,3.59667821,164.47,164.44,20.0]
[1730598137332,3.59667821,164.46,164.44,20.0]
[1730598137542,11.27395146,164.49,164.44,20.0]
[1730598138017,3.59659708,164.48,164.44,20.0]
[1730598138214,3.59659708,164.47,164.44,31.27395146]
[1730598138423,11.27395146,164.49,164.44,31.27395146]
[1730598138645,3.59705897,164.48,164.44,20.0]
[1730598138944,3.59705897,164.47,164.44,20.0]
[1730598139124,3.59705897,164.46,164.44,20.0]
[1730598139327,11.27395146,164.48,164.44,20.0]
[1730598139531,11.27395146,164.45,164.41,20.0]
[1730598139736,11.27395146,164.45,164.43,20.0]
[1730598140630,11.27395146,164.44,164.39,16.5197]
[1730598140829,11.27395146,164.43,164.4,20.0]
[1730598141236,11.27395146,164.41,164.36,11.27395146]
[1730598141438,11.27395146,164.4,164.35,11.27395146]
[1730598141647,11.27395146,164.39,164.34,26.56765146]
[1730598141832,11.27395146,164.39,164.34,15.2937]
[1730598142843,11.27395146,164.37,164.33,6.4603]
[1730598143151,11.27395146,164.36,164.32,0.3045525]
[1730598143525,11.27395146,164.35,164.32,0.3045525]
[1730598143854,11.27395146,164.34,164.32,0.3045525]
[1730598145448,11.27395146,164.33,164.32,0.3045525]
[1730598146453,11.27395146,164.34,164.32,0.3045525]
[1730598148247,11.27395146,164.35,164.32,0.3045525]
[1730598148427,11.27395146,164.38,164.34,20.0]
[1730598148632,11.27395146,164.39,164.34,31.27395146]
[1730598148832,11.27395146,164.39,164.34,20.0]
[1730598149132,11.27395146,164.37,164.34,20.0]
[1730598151045,11.27395146,164.37,164.33,23.776884]
[1730598151637,11.27395146,164.37,164.34,20.0]
[1730598152929,11.27395146,164.36,164.32,0.3045525]
[1730598153448,11.27395146,164.37,164.32,0.3045525]
[1730598154133,11.27395146,164.37,164.33,20.0]
[1730598155468,11.27395146,164.41,164.36,11.27395146]
[1730598157246,11.27395146,164.41,164.34,23.776884]
[1730598157247,11.27395146,164.41,164.35,11.27395146]
[1730598157450,11.27395146,164.41,164.36,11.27395146]
[1730598157657,11.27395146,164.42,164.37,11.27395146]
[1730598159731,11.27395146,164.43,164.38,11.27395146]
[1730598160559,3.59080621,164.42,164.38,11.27395146]
[1730598160856,11.27395146,164.43,164.38,11.27395146]
[1730598161051,3.59098499,164.42,164.38,11.27395146]
[1730598161260,11.27395146,164.43,164.38,11.27395146]
[1730598161428,3.59099229,164.42,164.38,11.27395146]
[1730598161631,11.27395146,164.43,164.38,11.27395146]
[1730598162247,3.59103702,164.42,164.38,11.27395146]
[1730598162555,11.27395146,164.42,164.37,11.27395146]
[1730598164355,26.38655146,164.45,164.39,11.27395146]
[1730598164565,3.59128349,164.44,164.4,11.27395146]
[1730598164747,3.59128349,164.43,164.4,11.27395146]
[1730598164940,11.27395146,164.45,164.4,11.27395146]
[1730598165141,3.59150846,164.44,164.39,11.27395146]
[1730598165441,3.59150846,164.43,164.39,11.27395146]
[1730598165645,11.27395146,164.45,164.39,11.27395146]
[1730598165848,3.59174749,164.44,164.39,11.27395146]
[1730598166035,11.27395146,164.45,164.4,11.27395146]
[1730598166360,3.5918025,164.44,164.41,11.27395146]
[1730598166559,11.27395146,164.48,164.42,11.27395146]
[1730598166857,3.59246259,164.47,164.42,11.27395146]
[1730598167043,3.59246259,164.46,164.43,11.27395146]
[1730598167254,11.27395146,164.48,164.43,11.27395146]
[1730598167458,3.59252959,164.47,164.43,11.27395146]
[1730598167650,3.59252959,164.46,164.42,11.27395146]
[1730598167841,11.27395146,164.47,164.42,11.27395146]
[1730598172062,11.27395146,164.48,164.42,11.27395146]
[1730598172361,3.59183117,164.47,164.42,11.27395146]
[1730598172579,11.27395146,164.48,164.42,11.27395146]
[1730598172736,3.59152708,164.47,164.42,11.27395146]
[1730598173059,11.27395146,164.48,164.42,11.27395146]
[1730598173559,14.86521773,164.47,164.42,11.27395146]
[1730598173761,11.27395146,164.47,164.42,11.27395146]
[1730598174849,11.27395146,164.48,164.42,11.27395146]
[1730598175079,3.59120956,164.47,164.42,11.27395146]
[1730598175353,11.27395146,164.48,164.42,11.27395146]
[1730598175559,3.59110484,164.47,164.42,11.27395146]
[1730598175862,11.27395146,164.48,164.42,11.27395146]
[1730598176044,3.59110434,164.47,164.42,11.27395146]
[1730598176239,11.27395146,164.48,164.42,11.27395146]
[1730598176445,3.59100028,164.47,164.42,11.27395146]
[1730598176641,11.27395146,164.48,164.42,11.27395146]
[1730598177155,14.86495124,164.47,164.42,11.27395146]
[1730598177356,11.27395146,164.46,164.41,20.0]
[1730598177863,11.27395146,164.46,164.41,11.27395146]
[1730598178057,11.27395146,164.47,164.42,20.0]
[1730598178253,11.27395146,164.47,164.42,31.27395146]
[1730598183167,11.27395146,164.46,164.42,20.0]
[1730598186456,21.1921,164.49,164.42,20.0]
[1730598186457,11.27395146,164.45,164.42,20.0]
[1730598186671,11.27395146,164.44,164.38,11.27395146]
[1730598186866,11.27395146,164.42,164.37,26.53475146]
[1730598187552,11.27395146,164.43,164.37,26.53475146]
[1730598189069,11.27395146,164.43,164.38,20.0]
[1730598191269,11.27395146,164.43,164.38,31.27395146]
[1730598192161,11.27395146,164.43,164.38,11.27395146]
[1730598195981,11.27395146,164.44,164.38,11.27395146]
[1730598198594,11.27395146,164.43,164.38,11.27395146]
[1730598199468,11.27395146,164.44,164.38,11.27395146]
[1730598201086,11.27395146,164.5,164.43,11.27395146]
[1730598201272,11.27395146,164.48,164.43,11.27395146]
[1730598202773,6.0791,164.5,164.41,23.776884]
[1730598202774,11.27395146,164.47,164.42,31.27395146]
[1730598203293,11.27395146,164.48,164.43,11.27395146]
[1730598204377,11.27395146,164.47,164.42,31.27395146]
[1730598204581,11.27395146,164.46,164.42,20.0]
[1730598204891,11.27395146,164.45,164.41,20.0]
[1730598206385,11.27395146,164.43,164.38,11.27395146]
[1730598206595,11.27395146,164.43,164.37,26.53475146]
[1730598206894,11.27395146,164.42,164.37,26.53475146]
[1730598208081,11.27395146,164.42,164.38,20.0]
[1730598210284,11.27395146,164.43,164.38,31.27395146]
[1730598210491,11.27395146,164.43,164.38,11.27395146]
[1730598210693,11.27395146,164.45,164.39,11.27395146]
[1730598211290,11.27395146,164.45,164.4,11.27395146]
[1730598211479,11.27395146,164.46,164.41,11.27395146]
[1730598212273,11.27395146,164.46,164.4,11.27395146]
[1730598214802,11.27395146,164.45,164.4,11.27395146]
[1730598222176,11.27395146,164.47,164.42,11.27395146]
[1730598223599,11.27395146,164.48,164.43,31.27395146]
[1730598223775,11.27395146,164.48,164.43,11.27395146]
[1730598227679,11.27395146,164.47,164.43,20.0]
[1730598228007,11.27395146,164.47,164.42,20.0]
[1730598231993,11.27395146,164.46,164.41,11.27395146]
[1730598232200,11.27395146,164.46,164.42,20.0]
[1730598232404,11.27395146,164.47,164.42,20.0]
[1730598235702,11.27395146,164.48,164.42,31.27395146]
[1730598237306,3.60148186,164.47,164.42,31.27395146]
[1730598237479,3.60148186,164.46,164.42,31.27395146]
[1730598237679,3.60148186,164.45,164.43,23.776884]
[1730598237880,11.27395146,164.5,164.44,11.27395146]
[1730598238708,11.27395146,164.5,164.45,11.27395146]
[1730598238896,11.27395146,164.51,164.46,11.27395146]
[1730598239095,11.27395146,164.51,164.45,11.27395146]
[1730598239517,11.27395146,164.5,164.45,11.27395146]
[1730598241312,11.27395146,164.49,164.43,35.05083546]
[1730598241495,11.27395146,164.48,164.44,20.0]
[1730598244011,11.27395146,164.49,164.44,20.0]
[1730598244515,11.27395146,164.49,164.44,31.27395146]
[1730598246220,11.27395146,164.48,164.44,20.0]
[1730598247718,11.27395146,164.49,164.44,20.0]
[1730598248599,11.27395146,164.47,164.41,11.27395146]
[1730598248906,11.27395146,164.44,164.38,33.74925146]
[1730598250714,11.27395146,164.44,164.39,20.0]
[1730598254623,11.27395146,164.43,164.39,20.0]
[1730598255622,11.27395146,164.44,164.39,31.27395146]
[1730598257910,11.27395146,164.43,164.39,20.0]
[1730598263922,11.27395146,164.44,164.39,20.0]
[1730598265021,11.27395146,164.44,164.39,31.27395146]
[1730598266420,11.27395146,164.46,164.41,11.27395146]
[1730598266605,11.27395146,164.47,164.41,11.27395146]
[1730598271022,11.27395146,164.48,164.43,11.27395146]
[1730598271205,11.27395146,164.49,164.44,11.27395146]
[1730598271806,6.0786,164.51,164.45,11.27395146]
[1730598271807,11.27395146,164.5,164.45,11.27395146]
[1730598272423,11.27395146,164.52,164.47,11.27395146]
[1730598272607,11.27395146,164.53,164.48,11.27395146]
[1730598272820,11.27395146,164.51,164.46,11.27395146]
[1730598273006,11.27395146,164.5,164.45,31.27395146]
[1730598274313,11.27395146,164.49,164.45,20.0]
[1730598275911,11.27395146,164.5,164.45,20.0]
[1730598276720,11.27395146,164.48,164.43,6.4548]
[1730598276922,11.27395146,164.47,164.43,20.0]
[1730598279119,11.27395146,164.45,164.41,20.0]
[1730598280007,11.27395146,164.46,164.41,20.0]
[1730598282039,11.27395146,164.45,164.41,20.0]
[1730598282209,11.27395146,164.42,164.39,20.0]
[1730598283734,11.27395146,164.43,164.39,20.0]
[1730598285847,11.27395146,164.44,164.39,31.27395146]
[1730598292239,11.27395146,164.45,164.39,31.27395146]
[1730598293840,11.27395146,164.45,164.4,11.27395146]
[1730598294035,11.27395146,164.47,164.41,11.27395146]
[1730598294421,11.27395146,164.46,164.41,11.27395146]
[1730598296227,11.27395146,164.45,164.4,35.05083546]
[1730598300360,11.27395146,164.46,164.41,11.27395146]
[1730598300643,11.27395146,164.46,164.4,35.05083546]
[1730598301649,11.27395146,164.45,164.4,35.05083546]
[1730598305345,11.27395146,164.46,164.4,35.05083546]
[1730598305561,11.27395146,164.46,164.41,11.27395146]
[1730598306246,11.27395146,164.45,164.4,35.05083546]
[1730598309646,11.27395146,164.46,164.41,11.27395146]
[1730598309949,11.27395146,164.48,164.43,11.27395146]
[1730598310255,11.27395146,164.5,164.45,11.27395146]
[1730598310450,11.27395146,164.52,164.47,11.27395146]
[1730598310822,11.27395146,164.52,164.48,20.0]
[1730598312547,11.27395146,164.52,164.47,11.27395146]
[1730598312743,11.27395146,164.48,164.44,23.776884]
[1730598313051,11.27395146,164.47,164.44,23.776884]
[1730598313239,11.27395146,164.47,164.43,20.0]
[1730598314042,11.27395146,164.46,164.42,20.0]
[1730598314237,11.27395146,164.44,164.4,6.4046]
[1730598314634,11.27395146,164.46,164.4,17.67855146]
[1730598316052,11.27395146,164.46,164.41,20.0]
[1730598317032,11.27395146,164.45,164.41,20.0]
[1730598317343,11.27395146,164.44,164.41,20.0]
[1730598322945,11.27395146,164.42,164.39,20.0]
[1730598323146,11.27395146,164.43,164.39,20.0]
[1730598323932,45.09580584,164.48,164.41,20.0]
[1730598324136,11.27395146,164.45,164.41,20.0]
[1730598327061,11.27395146,164.46,164.41,31.27395146]
[1730598327436,6.6298,164.5,164.38,16.3318]
[1730598327437,11.27395146,164.48,164.43,31.27395146]
[1730598327637,11.27395146,164.5,164.45,11.27395146]
[1730598327846,11.27395146,164.5,164.42,29.843484]
[1730598327847,11.27395146,164.51,164.46,31.27395146]
[1730598329341,11.27395146,164.52,164.47,11.27395146]
[1730598329757,11.27395146,164.51,164.46,11.27395146]
[1730598330063,11.27395146,164.51,164.47,20.0]
[1730598330572,15.2315,164.57,164.48,35.05083546]
[1730598330573,11.27395146,164.53,164.48,35.05083546]
[1730598331058,11.27395146,164.53,164.49,20.0]
[1730598331561,11.27395146,164.52,164.48,20.0]
[1730598333161,0.2,164.59,164.48,20.0]
[1730598333162,11.27395146,164.54,164.48,37.34055146]
[1730598333348,11.27395146,164.54,164.5,20.0]
[1730598333551,11.27395146,164.55,164.5,20.0]
[1730598334149,11.27395146,164.54,164.5,20.0]
[1730598335163,11.27395146,164.55,164.5,20.0]
[1730598335844,11.27395146,164.55,164.5,31.27395146]
[1730598336053,11.27395146,164.57,164.52,11.27395146]
[1730598336445,11.27395146,164.57,164.51,11.27395146]
[1730598340151,11.27395146,164.57,164.52,11.27395146]
[1730598344359,11.27395146,164.58,164.52,11.27395146]
[1730598344863,11.27395146,164.59,164.54,11.27395146]
[1730598345075,11.57850396,164.61,164.57,11.27395146]
[1730598345261,0.3045525,164.61,164.57,11.27395146]
[1730598346176,0.3045525,164.61,164.58,11.27395146]
[1730598346364,0.3045525,164.61,164.59,11.27395146]
[1730598346667,0.3045525,164.61,164.6,31.27395146]
[1730598349875,0.3045525,164.61,164.59,11.27395146]
[1730598350068,0.3045525,164.61,164.6,20.0]
[1730598350752,0.3045525,164.61,164.6,31.27395146]
[1730598352466,0.3045525,164.61,164.56,16.5652]
[1730598352650,0.3045525,164.61,164.57,35.05083546]
[1730598353355,0.3045525,164.61,164.58,11.27395146]
[1730598353878,0.3045525,164.61,164.59,20.0]
[1730598354864,0.3045525,164.61,164.58,20.0]
[1730598355063,11.57850396,164.61,164.57,20.0]
[1730598355958,0.3045525,164.61,164.57,31.27395146]
[1730598357371,11.57850396,164.61,164.57,20.0]
[1730598358973,11.57850396,164.61,164.56,27.83915146]
[1730598358974,11.27395146,164.6,164.56,20.0]
[1730598359376,11.27395146,164.59,164.56,20.0]
[1730598359682,11.27395146,164.59,164.55,20.0]
[1730598359886,11.27395146,164.58,164.55,20.0]
[1730598360202,11.27395146,164.58,164.53,23.776884]
[1730598360369,11.27395146,164.58,164.53,35.05083546]
[1730598361360,11.27395146,164.58,164.54,20.0]
[1730598363796,11.27395146,164.59,164.54,20.0]
[1730598364368,11.27395146,164.57,164.54,20.0]
[1730598364674,11.27395146,164.56,164.53,20.0]
[1730598365171,11.27395146,164.56,164.52,20.0]
[1730598365374,11.27395146,164.57,164.52,31.27395146]
[1730598366693,11.27395146,164.55,164.51,20.0]
[1730598366986,11.27395146,164.54,164.49,20.0]
[1730598367960,11.27395146,164.52,164.48,15.8146]
[1730598368170,11.27395146,164.53,164.48,27.08855146]
[1730598368693,11.27395146,164.53,164.48,15.8146]
[1730598368981,11.27395146,164.54,164.49,11.27395146]
[1730598369189,11.27395146,164.58,164.53,11.27395146]
[1730598370194,11.27395146,164.59,164.54,11.27395146]
[1730598370566,11.27395146,164.58,164.53,11.27395146]
[1730598372772,11.27395146,164.58,164.52,11.27395146]
[1730598373199,11.27395146,164.58,164.53,23.776884]
[1730598373890,11.27395146,164.58,164.53,35.05083546]
[1730598374779,11.27395146,164.58,164.53,23.776884]
[1730598375773,11.27395146,164.56,164.52,20.0]
[1730598376385,11.27395146,164.56,164.5,11.27395146]
[1730598376571,11.27395146,164.56,164.51,20.0]
[1730598377487,11.27395146,164.53,164.49,20.0]
[1730598378173,11.27395146,164.53,164.48,27.08855146]
[1730598378790,11.27395146,164.54,164.48,27.08855146]
[1730598379576,11.27395146,164.53,164.49,20.0]
[1730598381487,11.27395146,164.54,164.49,20.0]
[1730598382994,11.27395146,164.57,164.51,11.27395146]
[1730598383698,11.27395146,164.57,164.52,11.27395146]
[1730598384291,11.27395146,164.58,164.52,11.27395146]
[1730598384698,11.27395146,164.57,164.52,11.27395146]
[1730598385491,11.27395146,164.58,164.53,20.0]
[1730598385695,11.27395146,164.57,164.53,20.0]
[1730598387700,11.27395146,164.58,164.53,20.0]
[1730598387878,11.27395146,164.59,164.53,31.27395146]
[1730598388081,0.3045525,164.61,164.57,11.27395146]
[1730598389097,0.3045525,164.61,164.58,20.0]
[1730598391297,0.3045525,164.61,164.59,20.0]
[1730598393090,0.3045525,164.61,164.58,20.0]
[1730598394089,0.3045525,164.61,164.59,20.0]
[1730598396695,11.57850396,164.61,164.56,11.27395146]
[1730598396999,11.57850396,164.61,164.57,20.0]
[1730598398904,0.3045525,164.61,164.57,20.0]
[1730598401112,11.57850396,164.61,164.57,20.0]
[1730598402398,0.3045525,164.61,164.57,11.27395146]
[1730598402710,0.3045525,164.61,164.58,20.0]
[1730598402897,0.3045525,164.61,164.58,31.27395146]
[1730598405085,0.3045525,164.61,164.6,55.05083546]
[1730598405286,0.3045525,164.61,164.6,70.87293546]
[1730598408090,0.3045525,164.61,164.6,47.09605146]
[1730598408286,0.3045525,164.61,164.6,35.8221]
[1730598408490,0.3045525,164.61,164.59,20.0]
[1730598409205,0.3045525,164.61,164.59,11.27395146]
[1730598410408,0.3045525,164.61,164.6,20.0]
[1730598413193,0.3045525,164.61,164.58,11.27395146]
[1730598413194,0.3045525,164.61,164.59,20.0]
[1730598414095,0.3045525,164.61,164.57,35.05083546]
[1730598414294,11.57850396,164.61,164.56,26.81505146]
[1730598415387,11.57850396,164.61,164.57,20.0]
[1730598415811,0.3045525,164.61,164.57,31.27395146]
[1730598416200,0.3045525,164.61,164.57,20.0]
[1730598417416,11.57850396,164.61,164.57,20.0]
[1730598418193,0.3045525,164.61,164.57,20.0]
[1730598420811,11.27395146,164.58,164.52,26.81505146]
[1730598421122,11.27395146,164.57,164.52,26.81505146]
[1730598422116,11.27395146,164.57,164.53,20.0]
[1730598422496,11.27395146,164.55,164.5,11.27395146]
[1730598422701,11.27395146,164.54,164.48,27.83725146]
[1730598422906,11.27395146,164.54,164.49,11.27395146]
[1730598424099,11.27395146,164.54,164.5,20.0]
[1730598424496,11.27395146,164.52,164.48,16.5633]
[1730598424911,11.27395146,164.53,164.48,27.83725146]
[1730598425100,11.27395146,164.54,164.49,11.27395146]
[1730598426317,11.27395146,164.54,164.5,20.0]
[1730598426819,11.27395146,164.56,164.5,31.27395146]
[1730598426998,11.27395146,164.56,164.51,11.27395146]
[1730598428020,15.9403525,164.61,164.48,16.5633]
[1730598428021,11.27395146,164.59,164.53,11.27395146]
[1730598428204,11.27395146,164.58,164.53,11.27395146]
[1730598428812,11.27395146,164.58,164.52,20.0]
[1730598429006,11.27395146,164.57,164.53,20.0]
[1730598432132,11.27395146,164.58,164.53,31.27395146]
[1730598436407,11.57850396,164.61,164.55,31.27395146]
[1730598436611,11.57850396,164.61,164.56,11.27395146]
[1730598436802,11.57850396,164.61,164.55,31.27395146]
[1730598438605,11.57850396,164.61,164.57,20.0]
[1730598438916,0.3045525,164.61,164.57,31.27395146]
[1730598442104,0.2,164.56,164.43,11.27395146]
[1730598442308,11.27395146,164.44,164.38,26.91665146]
[1730598442615,6.0793,164.5,164.38,15.6427]
[1730598443228,11.27395146,164.46,164.4,11.27395146]
[1730598443611,11.27395146,164.47,164.4,11.27395146]
[1730598443823,11.27395146,164.47,164.41,20.0]
[1730598444011,11.27395146,164.46,164.41,20.0]
[1730598445329,11.27395146,164.48,164.43,20.0]
[1730598445627,17.74990452,164.47,164.43,20.0]
[1730598446507,17.74990452,164.47,164.42,20.0]
[1730598446715,17.74990452,164.44,164.42,20.0]
[1730598447023,17.74990452,164.45,164.39,37.74990452]
[1730598449815,17.74990452,164.46,164.4,41.52678852]
[1730598450117,17.74990452,164.46,164.41,37.74990452]
[1730598451354,17.74990452,164.47,164.42,17.74990452]
[1730598451548,17.74990452,164.47,164.43,20.0]
[1730598452237,17.74990452,164.47,164.42,20.0]
[1730598454720,17.74990452,164.47,164.42,17.74990452]
[1730598454924,17.74990452,164.47,164.43,20.0]
[1730598455121,17.74990452,164.46,164.43,20.0]
[1730598455539,17.74990452,164.46,164.42,20.0]
[1730598456527,17.74990452,164.47,164.42,37.74990452]
[1730598457128,17.74990452,164.46,164.41,37.74990452]
[1730598457633,17.74990452,164.45,164.41,20.0]
[1730598459443,23.776884,164.41,164.32,0.3045525]
[1730598459638,17.74990452,164.36,164.32,0.3045525]
[1730598460028,17.74990452,164.37,164.32,0.3045525]
[1730598460639,17.74990452,164.34,164.32,0.3045525]
[1730598461046,17.74990452,164.35,164.32,0.3045525]
[1730598461547,17.74990452,164.33,164.32,0.3045525]
[1730598466542,17.74990452,164.34,164.32,0.3045525]
[1730598466741,17.74990452,164.33,164.32,0.3045525]
[1730598469644,0.1,164.29,164.24,0.3045525]
[1730598469827,22.77598914,164.25,164.16,0.3045525]
[1730598470025,11.38799457,164.19,164.16,0.3045525]
[1730598470341,11.38799457,164.19,164.15,22.2151]
[1730598470342,11.38799457,164.19,164.15,22.0196525]
[1730598470940,11.38799457,164.19,164.16,20.0]
[1730598471126,11.38799457,164.19,164.16,14.5]
[1730598471345,11.38799457,164.19,164.15,22.0196525]
[1730598471734,17.81093486,164.19,164.15,22.0196525]
[1730598472050,17.81093486,164.18,164.15,22.0196525]
[1730598472238,17.81093486,164.19,164.15,22.0196525]
[1730598473129,17.81093486,164.2,164.15,22.0196525]
[1730598473438,17.81093486,164.2,164.16,20.0]
[1730598475463,17.81093486,164.21,164.16,37.81093486]
[1730598477049,17.81093486,164.21,164.16,20.0]
[1730598478149,17.81093486,164.19,164.16,20.0]
[1730598478359,17.81093486,164.19,164.15,20.0]
[1730598479139,17.81093486,164.2,164.16,20.0]
[1730598479958,15.31093486,164.2,164.16,20.0]
[1730598480155,17.81093486,164.22,164.17,20.0]
[1730598481247,17.81093486,164.21,164.17,20.0]
[1730598483746,17.81093486,164.21,164.17,19.5]
[1730598484563,17.81093486,164.22,164.17,37.31093486]
[1730598484861,17.81093486,164.23,164.18,17.81093486]
[1730598485063,17.81093486,164.31,164.22,41.58781886]
[1730598485238,17.81093486,164.29,164.24,17.81093486]
[1730598485659,17.81093486,164.29,164.25,20.0]
[1730598486062,17.81093486,164.3,164.25,20.0]
[1730598486549,17.81093486,164.3,164.25,17.81093486]
[1730598487552,17.81093486,164.31,164.26,17.81093486]
[1730598489040,17.81093486,164.3,164.25,17.81093486]